[Event "Early-Titled-Tuesday-Blitz-February-20-2024"]
[Site "Chess.com"]
[Date "2024.02.20"]
[Round "8"]
[White "Alblooshi_Hamad"]
[Black "HittingRookBottom"]
[Result "1-0"]
[WhiteElo "2176"]
[BlackElo "2017"]
[TimeControl "180+1"]
[EndTime "9:26:15 PST"]
[Termination "Alblooshi_Hamad won by resignation"]

1. d4 {[%clk 0:02:58]} 1... c6 {[%clk 0:02:41.6]} 2. c4 {[%clk 0:02:56.8]} 2...
d5 {[%clk 0:02:42.3]} 3. Nf3 {[%clk 0:02:56.9]} 3... Bg4 {[%clk 0:02:41.6]} 4.
Nc3 {[%clk 0:02:56.5]} 4... Nd7 {[%clk 0:02:42.1]} 5. cxd5 {[%clk 0:02:56.8]}
5... cxd5 {[%clk 0:02:42.2]} 6. Nxd5 {[%clk 0:02:54.2]} 6... e6 {[%clk
0:02:42.4]} 7. Nc3 {[%clk 0:02:54.2]} 7... Bb4 {[%clk 0:02:42.5]} 8. a3 {[%clk
0:02:51.3]} 8... Ba5 {[%clk 0:02:40.3]} 9. e3 {[%clk 0:02:50.6]} 9... Ngf6
{[%clk 0:02:40.4]} 10. Bd3 {[%clk 0:02:50.4]} 10... Nd5 {[%clk 0:02:38.9]} 11.
Bd2 {[%clk 0:02:49.5]} 11... Qb6 {[%clk 0:02:35.2]} 12. b4 {[%clk 0:02:48.3]}
12... Nxc3 {[%clk 0:02:33.8]} 13. Bxc3 {[%clk 0:02:48.2]} 13... Rc8 {[%clk
0:02:33.6]} 14. bxa5 {[%clk 0:02:47.5]} 14... Qc6 {[%clk 0:02:28.7]} 15. Bd2
{[%clk 0:02:46.4]} 15... Qd5 {[%clk 0:02:27]} 16. O-O {[%clk 0:02:45.3]} 16...
Nf6 {[%clk 0:02:26.7]} 17. h3 {[%clk 0:02:44.3]} 17... Bh5 {[%clk 0:02:26.7]}
18. Be2 {[%clk 0:02:41.9]} 18... O-O {[%clk 0:02:23.7]} 19. Ne5 {[%clk
0:02:42.2]} 19... Bg6 {[%clk 0:02:23.1]} 20. Nxg6 {[%clk 0:02:42.1]} 20... fxg6
{[%clk 0:02:23.1]} 21. Bf3 {[%clk 0:02:42.8]} 21... Qd7 {[%clk 0:02:22.3]} 22.
Rc1 {[%clk 0:02:42]} 22... Nd5 {[%clk 0:02:21.3]} 23. Qb3 {[%clk 0:02:39.5]}
23... Nf6 {[%clk 0:02:03.9]} 24. Qxb7 {[%clk 0:02:35.7]} 24... Qxb7 {[%clk
0:02:01.8]} 25. Bxb7 {[%clk 0:02:36.6]} 25... Rb8 {[%clk 0:02:02.5]} 26. a6
{[%clk 0:02:36.2]} 26... Ne4 {[%clk 0:01:59.8]} 27. Bb4 {[%clk 0:02:35.8]} 27...
Rf5 {[%clk 0:01:56.7]} 28. f3 {[%clk 0:02:36]} 28... Ng3 {[%clk 0:01:56.3]} 29.
Rfe1 {[%clk 0:02:30.5]} 29... Rb5 {[%clk 0:01:55.4]} 30. Bd6 {[%clk 0:02:30.5]}
1-0

[Event "Early-Titled-Tuesday-Blitz-February-20-2024"]
[Site "Chess.com"]
[Date "2024.02.20"]
[Round "8"]
[White "EdmundPlayer"]
[Black "GMT4114"]
[Result "1-0"]
[WhiteElo "2285"]
[BlackElo "2041"]
[TimeControl "180+1"]
[EndTime "9:26:54 PST"]
[Termination "EdmundPlayer won by resignation"]

1. Nf3 {[%clk 0:03:00.9]} 1... f5 {[%clk 0:02:58.2]} 2. b3 {[%clk 0:02:58.7]}
2... Nf6 {[%clk 0:02:57.9]} 3. Bb2 {[%clk 0:02:59]} 3... d6 {[%clk 0:02:55.7]}
4. c4 {[%clk 0:02:58.1]} 4... e5 {[%clk 0:02:55.9]} 5. e3 {[%clk 0:02:57.2]}
5... Be7 {[%clk 0:02:55.6]} 6. Be2 {[%clk 0:02:49.9]} 6... O-O {[%clk
0:02:55.4]} 7. d4 {[%clk 0:02:46.7]} 7... Nc6 {[%clk 0:02:51.8]} 8. dxe5 {[%clk
0:02:41.2]} 8... dxe5 {[%clk 0:02:32.3]} 9. Qxd8 {[%clk 0:02:31.6]} 9... Rxd8
{[%clk 0:02:31.8]} 10. Nxe5 {[%clk 0:02:30.3]} 10... Nb4 {[%clk 0:02:17.2]} 11.
Na3 {[%clk 0:02:20.3]} 11... Bd6 {[%clk 0:02:17.1]} 12. O-O {[%clk 0:02:00.4]}
12... f4 {[%clk 0:02:12.3]} 13. exf4 {[%clk 0:01:56.2]} 13... Bf5 {[%clk
0:02:02]} 14. Rfd1 {[%clk 0:01:45.8]} 14... Re8 {[%clk 0:02:00.2]} 15. Bf3
{[%clk 0:01:43.4]} 15... Be4 {[%clk 0:01:55.6]} 16. Bxe4 {[%clk 0:01:29.2]}
16... Nxe4 {[%clk 0:01:56.5]} 17. Nb5 {[%clk 0:01:19.1]} 1-0

[Event "Early-Titled-Tuesday-Blitz-February-20-2024"]
[Site "Chess.com"]
[Date "2024.02.20"]
[Round "8"]
[White "whiteglovethief"]
[Black "Raffael89"]
[Result "1-0"]
[WhiteElo "2441"]
[BlackElo "1840"]
[TimeControl "180+1"]
[EndTime "9:27:21 PST"]
[Termination "whiteglovethief won by resignation"]

1. d4 {[%clk 0:03:00.9]} 1... d5 {[%clk 0:02:57]} 2. c4 {[%clk 0:03:01.3]} 2...
c6 {[%clk 0:02:56.8]} 3. Nf3 {[%clk 0:03:01.4]} 3... Nf6 {[%clk 0:02:57.1]} 4.
g3 {[%clk 0:03:01.5]} 4... Bf5 {[%clk 0:02:55.8]} 5. Nh4 {[%clk 0:03:01]} 5...
Bc8 {[%clk 0:02:54]} 6. Nc3 {[%clk 0:03:00.2]} 6... e6 {[%clk 0:02:52.6]} 7. Bg2
{[%clk 0:02:55.1]} 7... Be7 {[%clk 0:02:52]} 8. O-O {[%clk 0:02:54.5]} 8... O-O
{[%clk 0:02:51.7]} 9. b3 {[%clk 0:02:53.4]} 9... Nbd7 {[%clk 0:02:48.4]} 10. Nf3
{[%clk 0:02:53.2]} 10... Re8 {[%clk 0:02:47.4]} 11. Bb2 {[%clk 0:02:53.2]} 11...
Bf8 {[%clk 0:02:42.3]} 12. Qc2 {[%clk 0:02:52.8]} 12... dxc4 {[%clk 0:02:40.4]}
13. bxc4 {[%clk 0:02:51.6]} 13... c5 {[%clk 0:02:35.1]} 14. d5 {[%clk
0:02:47.1]} 14... exd5 {[%clk 0:02:25.5]} 15. cxd5 {[%clk 0:02:48]} 15... Nb6
{[%clk 0:02:13.7]} 16. e4 {[%clk 0:02:47.5]} 16... Bg4 {[%clk 0:02:05.4]} 17.
Rfe1 {[%clk 0:02:43.1]} 17... a6 {[%clk 0:01:57]} 18. Rad1 {[%clk 0:02:36.7]}
18... Qc7 {[%clk 0:01:56]} 19. h3 {[%clk 0:02:14.5]} 19... Bxf3 {[%clk
0:01:54.5]} 20. Bxf3 {[%clk 0:02:15.1]} 20... Nc4 {[%clk 0:01:54.9]} 21. Ba1
{[%clk 0:02:04.5]} 21... Ne5 {[%clk 0:01:52.7]} 22. Bg2 {[%clk 0:02:03.5]} 22...
c4 {[%clk 0:01:53.2]} 23. Ne2 {[%clk 0:02:00]} 23... Nd3 {[%clk 0:01:52.6]} 24.
Rxd3 {[%clk 0:01:59.3]} 24... Nxe4 {[%clk 0:01:49.7]} 25. Re3 {[%clk 0:01:54.6]}
25... Nd6 {[%clk 0:01:35.2]} 26. Nf4 {[%clk 0:01:53.3]} 26... b5 {[%clk
0:01:30.3]} 27. Be5 {[%clk 0:01:49.3]} 27... Rad8 {[%clk 0:01:29.1]} 28. Bxd6
{[%clk 0:01:47.5]} 28... Qxd6 {[%clk 0:01:25.4]} 29. Rxe8 {[%clk 0:01:46.8]} 1-0

[Event "Early-Titled-Tuesday-Blitz-February-20-2024"]
[Site "Chess.com"]
[Date "2024.02.20"]
[Round "8"]
[White "regenda"]
[Black "dealshark"]
[Result "1-0"]
[WhiteElo "2264"]
[BlackElo "2367"]
[TimeControl "180+1"]
[EndTime "9:27:23 PST"]
[Termination "regenda won by resignation"]

1. e4 {[%clk 0:03:00.9]} 1... c6 {[%clk 0:02:59.3]} 2. c4 {[%clk 0:03:00.2]}
2... d5 {[%clk 0:02:59.9]} 3. cxd5 {[%clk 0:03:01.1]} 3... cxd5 {[%clk
0:03:00.5]} 4. exd5 {[%clk 0:03:02]} 4... Nf6 {[%clk 0:03:01]} 5. Qa4+ {[%clk
0:03:02.6]} 5... Nbd7 {[%clk 0:03:01.1]} 6. Nc3 {[%clk 0:03:03.1]} 6... g6
{[%clk 0:03:00.7]} 7. Qb3 {[%clk 0:03:03.8]} 7... Bg7 {[%clk 0:03:00.3]} 8. Bc4
{[%clk 0:03:04.1]} 8... Nb6 {[%clk 0:02:58.3]} 9. d3 {[%clk 0:03:03.8]} 9... O-O
{[%clk 0:02:57.8]} 10. Be3 {[%clk 0:02:57.6]} 10... Nbd7 {[%clk 0:02:44.5]} 11.
h3 {[%clk 0:02:55]} 11... a6 {[%clk 0:02:44.8]} 12. a4 {[%clk 0:02:54.9]} 12...
b6 {[%clk 0:02:42.6]} 13. Nf3 {[%clk 0:02:38.6]} 13... Bb7 {[%clk 0:02:42.6]}
14. O-O {[%clk 0:02:38.2]} 14... Rc8 {[%clk 0:02:41.3]} 15. Nd4 {[%clk
0:02:21.4]} 15... Nc5 {[%clk 0:02:33]} 16. Qa2 {[%clk 0:02:21.1]} 16... Nxd5
{[%clk 0:02:21.2]} 17. Bxd5 {[%clk 0:02:05.3]} 17... Bxd5 {[%clk 0:02:12.2]} 18.
Qxd5 {[%clk 0:02:05.1]} 18... Qxd5 {[%clk 0:02:12.5]} 19. Nxd5 {[%clk 0:02:06]}
19... Rcd8 {[%clk 0:02:06.1]} 20. Nc6 {[%clk 0:02:01.4]} 20... Rd7 {[%clk
0:01:57.2]} 21. Nxb6 {[%clk 0:01:54.5]} 21... Rc7 {[%clk 0:01:48.8]} 22. Nxe7+
{[%clk 0:01:41.7]} 22... Kh8 {[%clk 0:01:48]} 23. Ned5 {[%clk 0:01:40.8]} 23...
Rc6 {[%clk 0:01:45.4]} 24. Rac1 {[%clk 0:01:39.6]} 24... Rxb6 {[%clk 0:01:39.7]}
25. Bxc5 {[%clk 0:01:25.8]} 1-0

[Event "Early-Titled-Tuesday-Blitz-February-20-2024"]
[Site "Chess.com"]
[Date "2024.02.20"]
[Round "8"]
[White "Dinosaurio_1975"]
[Black "gm_rashid"]
[Result "1-0"]
[WhiteElo "2598"]
[BlackElo "2449"]
[TimeControl "180+1"]
[EndTime "9:27:38 PST"]
[Termination "Dinosaurio_1975 won by resignation"]

1. Nf3 {[%clk 0:03:00.9]} 1... Nf6 {[%clk 0:02:57.7]} 2. c4 {[%clk 0:02:59.2]}
2... g6 {[%clk 0:02:58]} 3. g3 {[%clk 0:02:55.7]} 3... Bg7 {[%clk 0:02:58.1]} 4.
Bg2 {[%clk 0:02:56.3]} 4... O-O {[%clk 0:02:50.8]} 5. O-O {[%clk 0:02:54.8]}
5... d6 {[%clk 0:02:47.9]} 6. Nc3 {[%clk 0:02:53.1]} 6... Nc6 {[%clk 0:02:48.1]}
7. d4 {[%clk 0:02:47]} 7... e5 {[%clk 0:02:42.6]} 8. d5 {[%clk 0:02:43.6]} 8...
Ne7 {[%clk 0:02:41.6]} 9. e4 {[%clk 0:02:37.5]} 9... Ne8 {[%clk 0:02:39.3]} 10.
Kh1 {[%clk 0:02:30]} 10... f5 {[%clk 0:02:36.6]} 11. exf5 {[%clk 0:02:29.2]}
11... gxf5 {[%clk 0:02:31.9]} 12. Ng5 {[%clk 0:02:28.6]} 12... h6 {[%clk
0:02:24.9]} 13. Ne6 {[%clk 0:02:09]} 13... Bxe6 {[%clk 0:02:25.1]} 14. dxe6
{[%clk 0:02:09.9]} 14... c6 {[%clk 0:02:26]} 15. Qh5 {[%clk 0:01:58.4]} 15...
Kh7 {[%clk 0:02:18.2]} 16. Qh3 {[%clk 0:01:52]} 16... Qc8 {[%clk 0:02:14.6]} 17.
g4 {[%clk 0:01:48]} 17... Qxe6 {[%clk 0:02:13.1]} 18. gxf5 {[%clk 0:01:47.3]}
18... Qxf5 {[%clk 0:02:13.2]} 19. Be4 {[%clk 0:01:46.8]} 19... Qxe4+ {[%clk
0:01:29.7]} 20. Nxe4 {[%clk 0:01:47.7]} 20... d5 {[%clk 0:01:29.2]} 21. Ng5+
{[%clk 0:01:37.8]} 21... Kh8 {[%clk 0:01:27.9]} 22. Ne6 {[%clk 0:01:31.3]} 22...
Rf6 {[%clk 0:01:26.2]} 23. Nxg7 {[%clk 0:01:31.1]} 23... Kxg7 {[%clk 0:01:25.3]}
24. Rg1+ {[%clk 0:01:30.5]} 24... Ng6 {[%clk 0:01:25.1]} 25. Qxh6+ {[%clk
0:01:29.3]} 25... Kf7 {[%clk 0:01:24.4]} 26. Qh7+ {[%clk 0:01:27.3]} 26... Ng7
{[%clk 0:01:23.5]} 27. Bh6 {[%clk 0:01:27.5]} 1-0

[Event "Early-Titled-Tuesday-Blitz-February-20-2024"]
[Site "Chess.com"]
[Date "2024.02.20"]
[Round "8"]
[White "pauliukevicius"]
[Black "jaskol95"]
[Result "0-1"]
[WhiteElo "2358"]
[BlackElo "2590"]
[TimeControl "180+1"]
[EndTime "9:27:43 PST"]
[Termination "jaskol95 won by checkmate"]

1. e4 {[%clk 0:03:00.9]} 1... d5 {[%clk 0:02:58]} 2. exd5 {[%clk 0:03:00.8]}
2... Nf6 {[%clk 0:02:58.7]} 3. d4 {[%clk 0:03:00.9]} 3... Bg4 {[%clk 0:02:59]}
4. f3 {[%clk 0:03:00.8]} 4... Bf5 {[%clk 0:02:59.4]} 5. c4 {[%clk 0:03:01]} 5...
e6 {[%clk 0:02:57.8]} 6. dxe6 {[%clk 0:03:00.6]} 6... Nc6 {[%clk 0:02:53]} 7.
Be3 {[%clk 0:02:58.6]} 7... fxe6 {[%clk 0:02:34.1]} 8. Nc3 {[%clk 0:02:58.1]}
8... Bb4 {[%clk 0:02:26.4]} 9. Ne2 {[%clk 0:02:56]} 9... O-O {[%clk 0:02:25.3]}
10. a3 {[%clk 0:02:54.1]} 10... Be7 {[%clk 0:02:24.7]} 11. Qd2 {[%clk
0:02:52.1]} 11... e5 {[%clk 0:02:20.1]} 12. d5 {[%clk 0:02:52.1]} 12... Na5
{[%clk 0:02:13]} 13. Ng3 {[%clk 0:02:51.4]} 13... Bg6 {[%clk 0:02:00.1]} 14. Qd1
{[%clk 0:02:48.9]} 14... b6 {[%clk 0:01:30.3]} 15. b4 {[%clk 0:02:45.4]} 15...
Nb7 {[%clk 0:01:30.3]} 16. Be2 {[%clk 0:02:46]} 16... e4 {[%clk 0:01:24.3]} 17.
fxe4 {[%clk 0:02:42]} 17... Nd7 {[%clk 0:01:19.2]} 18. Bd4 {[%clk 0:02:29.4]}
18... Bd6 {[%clk 0:01:12.9]} 19. Bf3 {[%clk 0:02:26.3]} 19... Ne5 {[%clk
0:01:06.1]} 20. c5 {[%clk 0:02:21.3]} 20... bxc5 {[%clk 0:01:05.2]} 21. bxc5
{[%clk 0:02:22.2]} 21... Nxc5 {[%clk 0:01:02.8]} 22. O-O {[%clk 0:02:19.4]}
22... Qh4 {[%clk 0:00:53.6]} 23. Qe2 {[%clk 0:02:13.5]} 23... Rae8 {[%clk
0:00:46.3]} 24. Bf2 {[%clk 0:02:05.5]} 24... Ncd3 {[%clk 0:00:39.9]} 25. Nf5
{[%clk 0:02:01.6]} 25... Nxf3+ {[%clk 0:00:40.2]} 26. Qxf3 {[%clk 0:01:57.9]}
26... Qxh2# {[%clk 0:00:41.1]} 0-1

[Event "Early-Titled-Tuesday-Blitz-February-20-2024"]
[Site "Chess.com"]
[Date "2024.02.20"]
[Round "8"]
[White "treadstone_71"]
[Black "C_K_G"]
[Result "0-1"]
[WhiteElo "2303"]
[BlackElo "2175"]
[TimeControl "180+1"]
[EndTime "9:27:55 PST"]
[Termination "C_K_G won by resignation"]

1. e4 {[%clk 0:03:00.9]} 1... c5 {[%clk 0:02:55.4]} 2. Nf3 {[%clk 0:03:00.8]}
2... d6 {[%clk 0:02:56]} 3. d4 {[%clk 0:03:01]} 3... cxd4 {[%clk 0:02:56.9]} 4.
Nxd4 {[%clk 0:03:01.6]} 4... Nf6 {[%clk 0:02:57.8]} 5. Nc3 {[%clk 0:03:02.1]}
5... a6 {[%clk 0:02:58.7]} 6. Bg5 {[%clk 0:03:02.3]} 6... e5 {[%clk 0:02:59.1]}
7. Nf5 {[%clk 0:03:00.1]} 7... Bxf5 {[%clk 0:02:59.7]} 8. exf5 {[%clk
0:03:00.4]} 8... Nbd7 {[%clk 0:03:00.2]} 9. g3 {[%clk 0:02:55.9]} 9... Qc7
{[%clk 0:03:00.5]} 10. Bg2 {[%clk 0:02:54.2]} 10... Be7 {[%clk 0:03:01]} 11. O-O
{[%clk 0:02:53.5]} 11... O-O {[%clk 0:03:00.8]} 12. Qd2 {[%clk 0:02:47.8]} 12...
Rac8 {[%clk 0:03:00.3]} 13. Rad1 {[%clk 0:02:46.9]} 13... b5 {[%clk 0:03:00.6]}
14. a3 {[%clk 0:02:45.2]} 14... Rfd8 {[%clk 0:02:56.6]} 15. Rfe1 {[%clk
0:02:32.6]} 15... Nb6 {[%clk 0:02:56.5]} 16. Re2 {[%clk 0:02:14.7]} 16... Nc4
{[%clk 0:02:51.4]} 17. Qc1 {[%clk 0:02:14.4]} 17... Nxb2 {[%clk 0:02:50.2]} 18.
Bxf6 {[%clk 0:02:07.6]} 18... Nxd1 {[%clk 0:02:44.3]} 19. Nd5 {[%clk 0:02:07.4]}
19... Nc3 {[%clk 0:02:39.1]} 20. Nxc3 {[%clk 0:01:47.5]} 20... Bxf6 {[%clk
0:02:37.8]} 21. Nd5 {[%clk 0:01:45.1]} 21... Qc4 {[%clk 0:02:25.5]} 22. Nxf6+
{[%clk 0:01:34]} 22... gxf6 {[%clk 0:02:26.4]} 23. Re4 {[%clk 0:01:34.3]} 23...
Qxc2 {[%clk 0:02:10.9]} 24. Rg4+ {[%clk 0:01:13.2]} 24... Kh8 {[%clk 0:01:56.9]}
25. Qh6 {[%clk 0:00:34.9]} 25... Qc1+ {[%clk 0:01:54.7]} 26. Bf1 {[%clk
0:00:35.2]} 26... Qxh6 {[%clk 0:01:53.6]} 0-1

[Event "Early-Titled-Tuesday-Blitz-February-20-2024"]
[Site "Chess.com"]
[Date "2024.02.20"]
[Round "8"]
[White "blitzking1729"]
[Black "N_I_Chess"]
[Result "1-0"]
[WhiteElo "2699"]
[BlackElo "2313"]
[TimeControl "180+1"]
[EndTime "9:28:07 PST"]
[Termination "blitzking1729 won by resignation"]

1. e4 {[%clk 0:03:00.1]} 1... Nf6 {[%clk 0:02:58.3]} 2. d3 {[%clk 0:03:00.1]}
2... d5 {[%clk 0:02:58]} 3. Nd2 {[%clk 0:03:00.8]} 3... e5 {[%clk 0:02:52.2]} 4.
Ngf3 {[%clk 0:03:00]} 4... Nc6 {[%clk 0:02:51.8]} 5. Be2 {[%clk 0:03:00.1]} 5...
Bc5 {[%clk 0:02:48.5]} 6. O-O {[%clk 0:03:00.3]} 6... O-O {[%clk 0:02:48.1]} 7.
c3 {[%clk 0:03:00.7]} 7... Bb6 {[%clk 0:02:42]} 8. b4 {[%clk 0:02:55.1]} 8... a6
{[%clk 0:02:39]} 9. a3 {[%clk 0:02:54.7]} 9... Bg4 {[%clk 0:02:36.5]} 10. Qc2
{[%clk 0:02:41.5]} 10... Re8 {[%clk 0:02:30.6]} 11. h3 {[%clk 0:02:39.9]} 11...
Bh5 {[%clk 0:02:30.4]} 12. Re1 {[%clk 0:02:38.9]} 12... dxe4 {[%clk 0:02:20.5]}
13. dxe4 {[%clk 0:02:36.9]} 13... Ba7 {[%clk 0:02:04.8]} 14. Nc4 {[%clk
0:02:24.3]} 14... Qe7 {[%clk 0:01:57]} 15. Bg5 {[%clk 0:02:18.6]} 15... h6
{[%clk 0:01:51.2]} 16. Bh4 {[%clk 0:02:18.4]} 16... Bg6 {[%clk 0:01:44.8]} 17.
Bf1 {[%clk 0:02:10.4]} 17... Qe6 {[%clk 0:01:37.7]} 18. a4 {[%clk 0:02:06.1]}
18... Nh5 {[%clk 0:00:40.8]} 19. b5 {[%clk 0:02:03.2]} 19... axb5 {[%clk
0:00:41.7]} 20. axb5 {[%clk 0:02:03]} 20... Ne7 {[%clk 0:00:38.9]} 21. Ncxe5
{[%clk 0:02:01.2]} 21... Bh7 {[%clk 0:00:37.6]} 22. Bc4 {[%clk 0:02:00.2]} 22...
Qb6 {[%clk 0:00:26.3]} 23. Bxf7+ {[%clk 0:01:57.4]} 23... Kh8 {[%clk 0:00:26.7]}
24. Bxh5 {[%clk 0:01:55.1]} 24... Rf8 {[%clk 0:00:26.6]} 25. Nd7 {[%clk
0:01:53.8]} 1-0

[Event "Early-Titled-Tuesday-Blitz-February-20-2024"]
[Site "Chess.com"]
[Date "2024.02.20"]
[Round "8"]
[White "AlexeiShirov"]
[Black "Kumi29"]
[Result "1-0"]
[WhiteElo "2844"]
[BlackElo "2626"]
[TimeControl "180+1"]
[EndTime "9:28:17 PST"]
[Termination "AlexeiShirov won by resignation"]

1. e4 {[%clk 0:03:00.9]} 1... d5 {[%clk 0:03:00.1]} 2. exd5 {[%clk 0:03:00.4]}
2... Qxd5 {[%clk 0:03:00.8]} 3. Nc3 {[%clk 0:03:00]} 3... Qd8 {[%clk 0:03:00.9]}
4. Nf3 {[%clk 0:02:57.5]} 4... Nf6 {[%clk 0:03:01.2]} 5. d4 {[%clk 0:02:54.4]}
5... g6 {[%clk 0:03:01.5]} 6. h4 {[%clk 0:02:49]} 6... h5 {[%clk 0:02:58.4]} 7.
Bc4 {[%clk 0:02:47.6]} 7... Bg7 {[%clk 0:02:56.2]} 8. Ne5 {[%clk 0:02:47]} 8...
e6 {[%clk 0:02:48.2]} 9. Bg5 {[%clk 0:02:46.9]} 9... Nbd7 {[%clk 0:02:39]} 10.
Qf3 {[%clk 0:02:43.9]} 10... Nf8 {[%clk 0:02:18.1]} 11. d5 {[%clk 0:02:27.1]}
11... N8h7 {[%clk 0:01:43.9]} 12. O-O-O {[%clk 0:02:25.2]} 12... Qe7 {[%clk
0:01:32.1]} 13. dxe6 {[%clk 0:02:23.5]} 13... Bxe6 {[%clk 0:01:30]} 14. Bxe6
{[%clk 0:02:19.2]} 14... Qxe6 {[%clk 0:01:28.4]} 15. Rhe1 {[%clk 0:02:17.5]}
15... O-O {[%clk 0:01:19.6]} 16. Nxg6 {[%clk 0:02:17.2]} 16... Nxg5 {[%clk
0:00:38.9]} 17. hxg5 {[%clk 0:02:14.1]} 17... Qg4 {[%clk 0:00:39.1]} 18. Ne7+
{[%clk 0:02:09.5]} 18... Kh8 {[%clk 0:00:27.8]} 19. gxf6 {[%clk 0:02:08.1]}
19... Bh6+ {[%clk 0:00:28.4]} 20. Kb1 {[%clk 0:02:07]} 20... Rad8 {[%clk
0:00:18.8]} 21. Qxg4 {[%clk 0:02:03]} 21... hxg4 {[%clk 0:00:18.5]} 22. Rh1
{[%clk 0:02:01.9]} 22... Rxd1+ {[%clk 0:00:17.1]} 23. Nxd1 {[%clk 0:02:00.9]}
23... Kh7 {[%clk 0:00:15.1]} 24. Ne3 {[%clk 0:01:59.1]} 1-0

[Event "Early-Titled-Tuesday-Blitz-February-20-2024"]
[Site "Chess.com"]
[Date "2024.02.20"]
[Round "8"]
[White "Mesa_1"]
[Black "gpsji27"]
[Result "1-0"]
[WhiteElo "2584"]
[BlackElo "2327"]
[TimeControl "180+1"]
[EndTime "9:28:21 PST"]
[Termination "Mesa_1 won by resignation"]

1. d4 {[%clk 0:03:00.9]} 1... d5 {[%clk 0:02:50.7]} 2. Nc3 {[%clk 0:03:01.3]}
2... Nf6 {[%clk 0:02:50.8]} 3. Bf4 {[%clk 0:03:01.9]} 3... a6 {[%clk 0:02:50.1]}
4. e3 {[%clk 0:03:00.9]} 4... c5 {[%clk 0:02:45.7]} 5. dxc5 {[%clk 0:02:53.8]}
5... Nc6 {[%clk 0:02:39.9]} 6. a3 {[%clk 0:02:47.8]} 6... e5 {[%clk 0:02:31.3]}
7. Bg5 {[%clk 0:02:46.3]} 7... Be6 {[%clk 0:02:29.5]} 8. b4 {[%clk 0:02:43.9]}
8... a5 {[%clk 0:02:23.7]} 9. Bb5 {[%clk 0:02:10.7]} 9... Qd7 {[%clk 0:02:11.2]}
10. Nf3 {[%clk 0:02:05.3]} 10... e4 {[%clk 0:02:00]} 11. Ne5 {[%clk 0:02:02.6]}
11... Qc7 {[%clk 0:01:50]} 12. Bf4 {[%clk 0:01:37.6]} 12... Qc8 {[%clk
0:01:46.9]} 13. Na4 {[%clk 0:01:37]} 13... Nd7 {[%clk 0:01:08.7]} 14. Nxd7
{[%clk 0:01:33.6]} 14... Bxd7 {[%clk 0:00:58.7]} 15. Nb6 {[%clk 0:01:32.8]}
15... Qd8 {[%clk 0:00:46.5]} 16. Nxa8 {[%clk 0:01:22]} 16... Qxa8 {[%clk
0:00:43.3]} 17. Qxd5 {[%clk 0:01:21.1]} 1-0

[Event "Early-Titled-Tuesday-Blitz-February-20-2024"]
[Site "Chess.com"]
[Date "2024.02.20"]
[Round "8"]
[White "ZachHKL"]
[Black "cristiano78"]
[Result "0-1"]
[WhiteElo "2094"]
[BlackElo "2264"]
[TimeControl "180+1"]
[EndTime "9:28:21 PST"]
[Termination "cristiano78 won by resignation"]

1. e4 {[%clk 0:03:00.9]} 1... c5 {[%clk 0:02:58.6]} 2. Nf3 {[%clk 0:03:00.9]}
2... d6 {[%clk 0:02:58.5]} 3. d4 {[%clk 0:03:01]} 3... cxd4 {[%clk 0:02:57.9]}
4. Nxd4 {[%clk 0:03:01.6]} 4... Nf6 {[%clk 0:02:58.6]} 5. Nc3 {[%clk 0:03:01.8]}
5... g6 {[%clk 0:02:58.9]} 6. Be3 {[%clk 0:03:01.6]} 6... Bg7 {[%clk 0:02:59]}
7. f3 {[%clk 0:03:02.1]} 7... O-O {[%clk 0:02:59.2]} 8. Qd2 {[%clk 0:03:02.4]}
8... Nc6 {[%clk 0:02:59.5]} 9. Bc4 {[%clk 0:03:03]} 9... Bd7 {[%clk 0:02:59.1]}
10. O-O-O {[%clk 0:03:02.9]} 10... Rc8 {[%clk 0:02:56.7]} 11. Bb3 {[%clk
0:03:03.4]} 11... Ne5 {[%clk 0:02:55.8]} 12. Kb1 {[%clk 0:03:03.1]} 12... Nc4
{[%clk 0:02:53.5]} 13. Bxc4 {[%clk 0:03:03.2]} 13... Rxc4 {[%clk 0:02:53.3]} 14.
g4 {[%clk 0:03:02.1]} 14... Qa5 {[%clk 0:02:47.6]} 15. Nd5 {[%clk 0:02:57.8]}
15... Qd8 {[%clk 0:02:40.3]} 16. Nb3 {[%clk 0:02:51.8]} 16... b6 {[%clk
0:02:35.7]} 17. Bh6 {[%clk 0:02:48.3]} 17... Nxd5 {[%clk 0:02:34.2]} 18. Bxg7
{[%clk 0:02:45.2]} 18... Kxg7 {[%clk 0:02:32.8]} 19. exd5 {[%clk 0:02:45.6]}
19... f5 {[%clk 0:02:26.5]} 20. g5 {[%clk 0:02:33.5]} 20... f4 {[%clk
0:02:25.5]} 21. h4 {[%clk 0:02:31.3]} 21... Bf5 {[%clk 0:02:24.1]} 22. Nd4
{[%clk 0:02:27.3]} 22... Qd7 {[%clk 0:02:23.4]} 23. Ka1 {[%clk 0:02:22.9]} 23...
Rfc8 {[%clk 0:02:06.5]} 24. c3 {[%clk 0:02:22.6]} 24... b5 {[%clk 0:02:05.4]}
25. Rde1 {[%clk 0:02:11.3]} 25... b4 {[%clk 0:02:03.1]} 26. Nxf5+ {[%clk
0:02:08.9]} 26... Qxf5 {[%clk 0:01:59.6]} 27. cxb4 {[%clk 0:02:01]} 27... Kf8
{[%clk 0:01:47.3]} 28. Qe2 {[%clk 0:01:53.1]} 28... R8c7 {[%clk 0:01:45.1]} 29.
a3 {[%clk 0:01:46.2]} 29... Qxd5 {[%clk 0:01:42.4]} 30. Rd1 {[%clk 0:01:41.9]}
30... Qf5 {[%clk 0:01:32.5]} 31. h5 {[%clk 0:01:37.7]} 31... Rc2 {[%clk
0:01:31.6]} 32. hxg6 {[%clk 0:01:31.8]} 32... hxg6 {[%clk 0:01:10.5]} 33. Qd3
{[%clk 0:01:23.5]} 33... Rc1+ {[%clk 0:01:08.6]} 34. Rxc1 {[%clk 0:01:19.9]}
34... Rxc1+ {[%clk 0:01:07.4]} 35. Rxc1 {[%clk 0:01:18.1]} 35... Qxd3 {[%clk
0:01:07.2]} 0-1